bitfinex/quotes_SOLUSD_20240614
["timestamp","ask_amount","ask_price","bid_price","bid_amount"]
[1718338024842,16.750321,147.99,147.89,8.9918]
[1718338025040,6.15,147.96,147.89,8.9918]
[1718338026153,26.15,147.98,147.89,0.34]
[1718338026465,6.15,147.93,147.89,0.17]
[1718338027636,6.15,147.93,147.85,2.5024]
[1718338027839,22.4601,147.93,147.87,6.15]
[1718338028056,22.4601,147.93,147.88,0.17]
[1718338030142,6.15,147.9,147.84,2.5026]
[1718338030339,6.15,147.89,147.81,2.5031]
[1718338030535,6.15,147.88,147.83,6.15]
[1718338030791,0.17,147.92,147.83,6.15]
[1718338030947,6.15,147.89,147.83,6.15]
[1718338035365,6.15,147.89,147.82,0.34]
[1718338035544,6.15,147.89,147.83,0.34]
[1718338035745,6.15,147.89,147.83,6.49]
[1718338036162,6.15,147.88,147.83,6.49]
[1718338036368,6.15,147.88,147.83,0.34]
[1718338036575,6.15,147.88,147.82,6.49]
[1718338038172,6.15,147.91,147.82,6.49]
[1718338038347,6.15,147.87,147.82,6.49]
[1718338042059,6.15,147.87,147.82,0.34]
[1718338042289,6.15,147.87,147.82,6.49]
[1718338042668,16.3101,147.93,147.85,6.15]
[1718338042870,6.15,147.9,147.85,6.15]
[1718338044482,6.15,147.9,147.84,6.32]
[1718338044686,6.15,147.9,147.85,0.17]
[1718338045567,6.15,147.89,147.84,6.15]
[1718338045764,6.15,147.89,147.83,6.15]
[1718338045965,16.3101,147.93,147.83,6.15]
[1718338046165,6.15,147.89,147.84,0.17]
[1718338046360,6.15,147.89,147.84,6.32]
[1718338046961,6.15,147.89,147.84,0.17]
[1718338047199,6.15,147.9,147.84,6.15]
[1718338047694,6.15,147.91,147.85,6.32]
[1718338049984,6.15,147.91,147.85,22.8078]
[1718338050293,6.15,147.92,147.86,6.15]
[1718338051893,6.15,147.91,147.85,22.8078]
[1718338053784,16.5473,147.92,147.81,15.2524]
[1718338054096,6.15,147.87,147.82,6.15]
[1718338054294,6.15,147.87,147.81,15.2524]
[1718338054602,6.15,147.86,147.81,15.2524]
[1718338054908,6.15,147.87,147.81,15.2524]
[1718338055199,6.15,147.87,147.81,21.4024]
[1718338055368,6.15,147.86,147.81,21.4024]
[1718338056389,6.15,147.88,147.82,6.15]
[1718338056794,20.0,147.91,147.84,6.15]
[1718338056997,6.15,147.9,147.84,6.15]
[1718338057202,6.15,147.9,147.85,0.17]
[1718338057570,6.15,147.89,147.83,6.32]
[1718338057804,6.15,147.89,147.84,0.17]
[1718338061406,6.15,147.89,147.84,0.34]
[1718338062976,6.15,147.89,147.84,6.49]
[1718338063292,6.15,147.89,147.84,0.34]
[1718338063603,6.15,147.89,147.84,0.17]
[1718338065281,6.15,147.88,147.84,0.17]
[1718338065476,6.15,147.88,147.83,0.51]
[1718338068102,6.15,147.89,147.83,0.51]
[1718338071187,6.15,147.89,147.83,6.66]
[1718338072100,6.15,147.88,147.83,0.34]
[1718338072288,6.15,147.88,147.81,21.4024]
[1718338072492,6.15,147.88,147.82,0.17]
[1718338072679,6.15,147.87,147.82,0.17]
[1718338075086,6.15,147.87,147.82,1.52275513]
[1718338075286,6.15,147.88,147.82,7.67275513]
[1718338082426,6.15,147.88,147.82,1.52275513]
[1718338082726,6.15,147.88,147.82,7.50275513]
[1718338082915,6.15,147.85,147.81,15.2524]
[1718338084105,6.15,147.85,147.8,6.6233]
[1718338085022,0.17,147.89,147.8,12.7733]
[1718338085317,6.15,147.87,147.81,6.15]
[1718338086710,20.0,147.89,147.81,6.15]
[1718338086933,6.15,147.88,147.82,6.66]
[1718338088298,16.5473,147.92,147.83,21.285]
[1718338088495,6.15,147.89,147.83,21.285]
[1718338090530,6.15,147.89,147.83,15.135]
[1718338090728,6.15,147.89,147.84,6.15]
[1718338090941,6.15,147.89,147.83,21.285]
[1718338098030,16.5473,147.92,147.83,15.135]
[1718338098031,6.15,147.88,147.83,15.135]
[1718338098247,6.15,147.87,147.8,6.6233]
[1718338098447,6.15,147.86,147.8,6.6233]
[1718338098935,6.15,147.86,147.8,12.7733]
[1718338099748,6.15,147.86,147.81,0.17]
[1718338101857,6.15,147.85,147.79,15.2511]
[1718338102034,6.15,147.85,147.8,0.17]
[1718338102230,6.15,147.85,147.79,15.0811]
[1718338102647,6.15,147.85,147.79,21.2311]
[1718338102862,6.15,147.85,147.79,15.0811]
[1718338103150,6.15,147.85,147.79,21.2311]
[1718338103659,6.15,147.85,147.8,0.17]
[1718338104960,6.15,147.85,147.8,6.32]
[1718338105328,6.15,147.86,147.8,6.32]
[1718338107156,6.15,147.86,147.8,0.17]
[1718338107375,6.15,147.85,147.8,0.17]
[1718338107551,6.15,147.83,147.78,6.32]
[1718338107747,6.15,147.83,147.78,0.17]
[1718338107948,6.15,147.84,147.78,6.15]
[1718338108172,6.15,147.83,147.78,6.15]
[1718338108577,6.15,147.84,147.78,6.15]
[1718338109358,6.15,147.83,147.78,6.15]
[1718338109567,6.15,147.83,147.76,22.3872]
[1718338109770,6.15,147.83,147.78,6.15]
[1718338111378,6.15,147.83,147.77,0.34]
[1718338111597,6.15,147.83,147.77,6.49]
[1718338112469,6.15,147.83,147.78,6.15]
[1718338113365,6.15,147.85,147.79,6.15]
[1718338114088,15.9121,147.87,147.79,6.15]
[1718338114272,106.5692,147.89,147.79,6.15]
[1718338114273,6.5692,147.89,147.81,6.15]
[1718338114474,20.0,147.88,147.81,6.15]
[1718338114787,6.15,147.87,147.81,6.15]
[1718338114959,6.15,147.87,147.8,0.17]
[1718338115161,6.15,147.86,147.79,0.34]
[1718338115384,6.15,147.86,147.8,6.15]
[1718338115991,6.15,147.85,147.8,6.15]
[1718338116174,6.15,147.85,147.79,6.49]
[1718338117574,6.15,147.85,147.79,0.34]
[1718338117784,6.15,147.85,147.79,6.49]
[1718338119266,6.15,147.85,147.79,0.34]
[1718338119464,6.15,147.84,147.76,24.8911]
[1718338119676,6.15,147.84,147.78,6.15]
[1718338123502,6.15,147.83,147.77,6.49]
[1718338126910,6.15,147.83,147.77,8.9938]
[1718338127090,0.17,147.87,147.78,6.15]
[1718338127275,6.15,147.85,147.79,6.15]
[1718338129113,0.17,147.87,147.78,6.15]
[1718338129114,6.15,147.84,147.78,6.15]
[1718338135088,6.15,147.84,147.77,0.34]
[1718338135287,6.15,147.84,147.78,6.15]
[1718338137021,6.15,147.84,147.77,0.17]
[1718338137184,6.15,147.83,147.77,6.15]
[1718338137821,6.15,147.82,147.76,22.3872]
[1718338138030,6.15,147.82,147.76,28.5372]
[1718338138623,0.17,147.85,147.76,28.5372]
[1718338138826,6.15,147.82,147.76,28.5372]
[1718338139359,6.15,147.82,147.77,6.15]
[1718338140074,6.15,147.82,147.76,22.3872]
[1718338140224,6.15,147.82,147.77,6.15]
[1718338140569,16.4056,147.86,147.78,0.34]
[1718338140862,6.15,147.86,147.8,6.15]
[1718338142683,6.5692,147.89,147.81,6.15]
[1718338142839,21.08865395,147.9,147.82,6.15]
[1718338143039,20.0,147.89,147.81,8.6531]
[1718338143270,20.0,147.89,147.82,6.32]
[1718338143271,6.15,147.88,147.82,6.32]
[1718338143454,24.9744284,147.91,147.84,6.15]
[1718338143455,0.3744284,147.91,147.84,6.15]
[1718338143654,6.5244284,147.91,147.85,6.15]
[1718338143863,0.3744284,147.91,147.86,6.15]
[1718338144384,0.3744284,147.91,147.9,6.15]
[1718338144583,0.3744284,147.91,147.9,6.32]
[1718338144877,0.3744284,147.91,147.9,8.8216]
[1718338145174,0.3744284,147.91,147.9,0.51]
[1718338145345,0.3744284,147.91,147.9,6.66]
[1718338146368,0.3744284,147.91,147.9,6.83]
[1718338146546,6.771,148.09,147.9,6.83]
[1718338146547,6.1616,148.05,147.91,0.17]
[1718338146747,6.1616,148.05,147.92,2.5012]
[1718338146748,6.15,148.02,147.92,2.5012]
[1718338146973,6.15,148.0,147.93,0.51]
[1718338147153,100.0,148.04,147.93,0.51]
[1718338147154,6.15,147.99,147.93,6.15]
[1718338147363,6.15,148.01,147.94,0.17]
[1718338147570,6.15,148.01,147.95,6.15]
[1718338147879,6.1616,148.05,147.96,6.15]
[1718338148054,6.15,148.01,147.96,6.15]
[1718338148759,6.15,148.0,147.94,0.34]
[1718338148945,6.15,147.98,147.89,6.7586]
[1718338149152,6.15,147.98,147.92,6.15]
[1718338149459,6.15,147.97,147.91,0.51]
[1718338149647,6.15,147.97,147.92,6.15]
[1718338150569,6.15,147.97,147.93,0.34]
[1718338150754,120.0,148.04,147.94,6.32]
[1718338150955,6.15,148.0,147.94,6.32]
[1718338151352,6.15,148.0,147.95,6.15]
[1718338151752,6.15,148.0,147.94,0.17]
[1718338151958,6.15,148.0,147.95,6.15]
[1718338152173,0.17,148.03,147.95,6.15]
[1718338152551,6.15,148.01,147.95,6.15]
[1718338153171,6.15,148.02,147.96,6.32]
[1718338153348,6.15,148.01,147.96,0.17]
[1718338153548,6.15,148.0,147.96,0.17]
[1718338154646,20.0,148.04,147.96,0.17]
[1718338154848,6.15,148.01,147.96,0.17]
[1718338157679,6.15,148.0,147.94,6.15]
[1718338157888,6.15,147.99,147.93,6.15]
[1718338158054,6.15,147.98,147.93,6.15]
[1718338158255,6.15,147.98,147.92,6.15]
[1718338159276,6.15,148.0,147.94,6.15]
[1718338160456,6.15,147.99,147.94,6.15]
[1718338160665,6.15,147.99,147.93,6.15]
[1718338161480,120.0,148.04,147.94,0.51]
[1718338161779,6.15,148.02,147.94,0.51]
[1718338161960,6.15,148.01,147.94,0.51]
[1718338162164,0.33333333,148.01,147.94,0.51]
[1718338162365,0.33333333,148.01,147.94,1.72761207]
[1718338167411,0.33333333,148.01,147.94,0.51]
[1718338170676,6.15,148.0,147.9,7.1061]
[1718338170902,6.15,147.99,147.9,7.1061]
[1718338171101,6.15,147.98,147.92,6.15]
[1718338171513,0.33333333,147.97,147.92,6.15]
[1718338172283,0.33333333,147.97,147.9,7.1061]
[1718338172513,6.48333333,147.97,147.91,6.15]
[1718338172698,6.15,147.95,147.9,7.1061]
[1718338173506,6.0702,147.99,147.91,6.15]
[1718338173703,6.15,147.97,147.91,6.15]
[1718338175213,6.15,147.96,147.9,13.4261]
[1718338175416,6.15,147.96,147.91,0.17]
[1718338175594,6.0702,147.99,147.9,13.2561]
[1718338175782,6.15,147.96,147.9,13.2561]
[1718338176625,6.0702,147.99,147.9,13.2561]
[1718338176912,6.15,147.96,147.9,13.2561]
[1718338178788,6.0702,147.99,147.9,13.2561]
[1718338179003,6.15,147.96,147.9,13.2561]
[1718338179599,6.15,147.97,147.91,6.49]
[1718338180004,6.15,147.97,147.91,0.34]
[1718338180206,6.15,147.97,147.91,6.49]
[1718338180407,6.15,147.96,147.91,6.49]
[1718338180810,6.15,147.96,147.91,0.34]
[1718338183617,20.0,147.98,147.91,0.17]
[1718338183618,6.15,147.95,147.91,0.17]
[1718338188325,6.15,147.98,147.9,7.1061]
[1718338188490,6.15,147.94,147.9,7.1061]
[1718338191111,20.0,147.97,147.9,7.1061]
[1718338195926,24.6,147.98,147.9,7.1061]
[1718338196128,20.0,147.97,147.9,7.1061]
[1718338201206,20.0,147.97,147.88,0.75346784]
[1718338201207,6.15,147.91,147.88,0.75346784]
[1718338202403,6.15,147.9,147.88,0.75346784]
[1718338202837,6.15,147.91,147.88,0.75346784]
[1718338203209,6.15,147.91,147.86,16.4499]
[1718338203610,6.15,147.91,147.87,0.17]
[1718338203807,6.15,147.91,147.86,16.4499]
[1718338204026,6.15,147.89,147.86,16.4499]
[1718338204623,6.15,147.88,147.81,24.8681]
[1718338204849,6.15,147.91,147.82,6.15]
[1718338205008,24.6,147.91,147.82,6.15]
[1718338205514,0.17,147.94,147.83,0.51]
[1718338205818,6.15,147.88,147.83,0.51]
[1718338206343,6.15,147.89,147.83,0.51]
[1718338206511,6.15,147.89,147.83,6.66]
[1718338207022,6.15,147.87,147.82,0.75377368]
[1718338207341,6.15,147.87,147.81,28.515]
[1718338208101,24.6,147.91,147.81,28.515]
[1718338208333,6.15,147.88,147.82,6.15]
[1718338208937,6.15,147.88,147.81,22.705]
[1718338209145,6.15,147.87,147.82,0.17]
[1718338210110,6.15,147.87,147.81,28.515]
[1718338211037,6.15,147.87,147.82,0.34]
[1718338211241,24.6,147.91,147.82,6.49]
[1718338211629,20.0,147.9,147.82,6.49]
[1718338212393,6.15,147.88,147.83,6.15]
[1718338213029,6.15,147.88,147.84,0.17]
[1718338213229,116.5567,147.95,147.85,22.8166]
[1718338213230,16.5567,147.95,147.85,22.8166]
[1718338213539,6.15,147.92,147.86,6.49]
[1718338213749,6.15,147.92,147.86,6.66]
[1718338214433,20.0,147.94,147.86,6.66]
[1718338214434,6.15,147.91,147.86,6.66]
[1718338215350,6.15,147.91,147.86,0.51]
[1718338215645,20.0,147.94,147.86,0.51]
[1718338216060,6.15,147.92,147.86,6.66]
[1718338217334,6.15,147.91,147.86,0.51]
[1718338217721,6.15,147.91,147.86,0.17]
[1718338217924,6.15,147.91,147.82,0.75377368]
[1718338218137,6.15,147.87,147.82,0.75377368]
[1718338218445,6.15,147.87,147.81,28.5095]
[1718338218650,6.15,147.87,147.81,28.2078083]
[1718338218873,6.15,147.87,147.81,22.0578083]
[1718338219159,6.15,147.87,147.81,28.2078083]
[1718338219345,6.15,147.86,147.81,22.0578083]
[1718338220832,6.15,147.88,147.82,6.15]
[1718338221354,100.17,147.93,147.83,0.17]
[1718338221665,6.15,147.88,147.83,0.17]
[1718338229177,20.0,147.92,147.85,6.15]
[1718338229377,16.5567,147.95,147.85,6.15]
[1718338229378,6.15,147.91,147.85,6.15]
[1718338229553,6.15,147.91,147.86,0.34]
[1718338230569,6.15,147.91,147.86,0.17]
[1718338234078,16.5567,147.95,147.86,0.17]
[1718338234258,6.15,147.9,147.86,0.17]
[1718338234963,116.5567,147.95,147.81,22.0578083]
[1718338234964,6.15,147.89,147.81,22.0578083]
[1718338235277,6.15,147.89,147.84,6.15]
[1718338235579,6.15,147.89,147.83,6.15]
[1718338236265,6.15,147.89,147.84,0.17]
[1718338237979,6.15,147.89,147.84,6.32]
[1718338238181,6.15,147.9,147.85,0.17]
[1718338238477,116.5567,147.95,147.85,0.17]
[1718338238478,16.5567,147.95,147.86,16.4394]
[1718338238706,11.68285347,147.96,147.88,6.15]
[1718338238707,5.37425347,147.96,147.88,6.15]
[1718338238860,6.15,147.94,147.88,6.15]
[1718338239398,6.15,147.95,147.89,6.15]
[1718338239682,24.6,147.98,147.89,6.15]
[1718338239907,6.15,147.95,147.89,6.15]
[1718338240396,6.15,147.94,147.89,6.15]
[1718338241179,6.15,147.94,147.88,6.15]
[1718338241795,100.0,147.96,147.87,6.7111]
[1718338241991,100.0,147.96,147.86,16.4394]
[1718338241992,6.15,147.91,147.86,16.4394]
[1718338242288,6.15,147.9,147.86,16.4394]
[1718338243255,6.15,147.91,147.86,22.5894]
[1718338243460,6.15,147.91,147.86,16.4394]
[1718338243712,6.15,147.91,147.86,22.5894]
[1718338248981,6.15,147.92,147.86,22.5894]
[1718338250113,20.0,147.95,147.86,22.5894]
[1718338250412,6.15,147.92,147.87,0.17]
[1718338258217,5.45360773,147.95,147.87,0.17]
[1718338258426,6.15,147.92,147.87,0.17]
[1718338259107,6.15,147.92,147.86,22.5894]
[1718338259308,6.15,147.92,147.87,0.17]
[1718338260821,6.15,147.92,147.86,22.5894]
[1718338261011,6.15,147.91,147.86,16.4394]
[1718338261392,6.15,147.9,147.86,16.4394]
[1718338261796,100.0,147.94,147.86,16.4394]
[1718338262031,6.15,147.9,147.86,16.4394]
[1718338263801,6.15,147.91,147.86,16.4394]
[1718338264714,100.0,147.94,147.86,16.4394]
[1718338265024,0.17,147.97,147.86,16.4394]
[1718338265215,6.15,147.93,147.87,6.49]
[1718338271843,0.17,147.97,147.87,6.49]
[1718338272013,6.15,147.95,147.89,6.15]
[1718338276126,6.32,147.98,147.89,6.15]
[1718338276330,6.15,147.94,147.89,6.15]
[1718338280218,6.32,147.98,147.89,6.15]
[1718338280417,6.15,147.95,147.89,6.15]
[1718338280932,0.33333334,147.94,147.89,6.15]
[1718338281141,0.33333334,147.94,147.91,6.15]
[1718338281310,0.33333334,147.94,147.91,21.1689]
[1718338281629,0.33333334,147.94,147.91,17.5203]
[1718338281830,0.33333334,147.94,147.93,6.15]
[1718338282013,0.33333334,147.94,147.93,6.49]
[1718338282334,0.33333334,147.94,147.93,7.02343394]
[1718338282521,0.33333334,147.94,147.93,6.49]
[1718338283507,0.33333334,147.94,147.93,0.34]
[1718338283713,0.33333334,147.94,147.93,6.15]
[1718338283915,0.33333334,147.94,147.93,6.32]
[1718338285421,0.33333334,147.94,147.93,0.17]
[1718338285732,0.33333334,147.94,147.92,6.66]
[1718338287316,0.33333334,147.94,147.93,6.15]
[1718338287535,0.33333334,147.94,147.93,6.32]
[1718338288037,0.33333334,147.94,147.93,0.17]
[1718338292047,0.33333334,147.94,147.92,6.32]
[1718338293243,0.33333334,147.94,147.93,6.15]
[1718338293444,0.33333334,147.94,147.93,6.32]
[1718338295625,0.33333334,147.94,147.93,0.17]
[1718338295826,0.33333334,147.94,147.93,6.15]
[1718338296028,0.33333334,147.94,147.93,6.32]
[1718338296919,0.33333334,147.94,147.93,0.17]
[1718338297344,0.33333334,147.94,147.93,6.32]
[1718338300857,0.33333334,147.94,147.93,0.17]
[1718338301147,0.33333334,147.94,147.93,6.15]
[1718338301325,0.33333334,147.94,147.93,6.32]
[1718338305556,0.33333334,147.94,147.93,9.3311]
[1718338307051,0.33333334,147.94,147.93,3.1811]
[1718338307239,0.33333334,147.94,147.93,9.3311]
[1718338312187,0.33333334,147.94,147.93,14.3334]
[1718338312485,0.33333334,147.94,147.93,21.8369]
[1718338313797,0.33333334,147.94,147.93,14.3334]
[1718338314100,0.33333334,147.94,147.93,21.8369]
[1718338314262,0.33333334,147.94,147.93,9.3311]
[1718338315390,0.33333334,147.94,147.93,0.68]
[1718338315564,0.33333334,147.94,147.93,6.66]
[1718338316364,0.33333334,147.94,147.91,15.0189]
[1718338316577,0.33333334,147.94,147.92,6.15]
[1718338319462,0.33333334,147.94,147.93,6.15]
[1718338319662,0.33333334,147.94,147.93,6.32]
[1718338321293,0.33333334,147.94,147.93,0.17]
[1718338321790,0.33333334,147.94,147.91,0.17]
[1718338321999,0.33333334,147.94,147.92,6.15]
[1718338323711,0.33333334,147.94,147.87,26.503]
[1718338323712,6.48333334,147.94,147.87,16.4943]
[1718338323998,6.48333334,147.94,147.86,9.0954]
[1718338324216,6.48333334,147.94,147.87,2.5021]
[1718338324503,6.48333334,147.94,147.89,6.15]
[1718338325593,0.33333334,147.94,147.9,6.15]
[1718338325797,0.33333334,147.94,147.91,6.15]
[1718338326004,0.33333334,147.94,147.9,6.15]
[1718338326595,0.33333334,147.94,147.88,0.34]
[1718338326769,0.33333334,147.94,147.89,6.15]
[1718338327093,0.33333334,147.94,147.88,0.34]
[1718338327299,6.15,147.93,147.88,0.17]
[1718338327867,6.15,147.93,147.87,6.66]
[1718338328794,6.15,147.93,147.87,0.51]
[1718338328984,6.15,147.93,147.87,6.66]
[1718338329377,6.15,147.94,147.88,6.15]
[1718338331672,15.3181,147.96,147.88,6.15]
[1718338332001,15.3181,147.96,147.92,6.15]
[1718338333477,15.3181,147.96,147.91,6.49]
[1718338334492,15.3181,147.96,147.92,6.15]
[1718338335273,15.3181,147.96,147.9,6.15]
[1718338335478,21.4681,147.96,147.9,6.15]
[1718338337671,6.15,147.94,147.89,0.51]
[1718338337872,6.15,147.94,147.89,0.17]
[1718338338070,6.15,147.94,147.88,6.15]
[1718338338296,6.15,147.93,147.88,6.15]
[1718338339083,6.15,147.93,147.87,0.68]
[1718338339284,6.15,147.93,147.88,6.15]
[1718338339779,15.3181,147.96,147.88,6.15]
[1718338339982,6.15,147.94,147.88,6.15]
[1718338340376,6.15,147.95,147.87,3.1821]
[1718338340581,6.15,147.95,147.89,6.15]
[1718338341782,6.15,147.94,147.87,0.68]
[1718338341983,6.15,147.94,147.88,6.15]
[1718338342613,15.3181,147.96,147.88,6.15]
[1718338342778,15.3181,147.96,147.89,6.32]
[1718338343077,15.3181,147.96,147.89,6.15]
[1718338345905,15.3181,147.96,147.9,0.17]
[1718338346080,15.3181,147.96,147.9,0.34]
[1718338346279,15.3181,147.96,147.9,6.49]
[1718338346480,21.4681,147.96,147.9,6.49]
[1718338349082,15.3181,147.96,147.9,0.34]
[1718338349396,15.3181,147.96,147.92,6.15]
[1718338351280,15.3181,147.96,147.91,6.15]
[1718338352803,15.3181,147.96,147.9,0.34]
[1718338353024,15.3181,147.96,147.91,6.15]
[1718338357194,15.3181,147.96,147.92,6.32]
[1718338357384,24.6,148.05,147.94,6.15]
[1718338357385,6.15,148.0,147.94,6.15]
[1718338359398,15.9663,148.01,147.94,6.15]
[1718338359612,6.15,148.0,147.94,6.15]
[1718338364015,15.9663,148.01,147.94,6.15]
[1718338364188,22.1163,148.01,147.95,6.32]
[1718338369821,6.15,148.0,147.95,0.17]
[1718338370038,6.15,147.99,147.95,0.17]
[1718338370216,6.15,147.99,147.94,6.32]
[1718338370518,6.15,147.99,147.94,0.17]
[1718338370718,6.15,147.98,147.93,6.49]
[1718338370917,6.15,147.98,147.93,0.17]
[1718338372598,6.15,147.98,147.93,0.34]
[1718338372799,6.15,147.98,147.9,16.0548]
[1718338373101,6.15,147.98,147.92,6.15]
[1718338374892,6.15,147.96,147.9,16.0548]
[1718338375093,6.15,147.96,147.91,0.17]
[1718338375725,6.15,147.96,147.89,2.8417]
[1718338375917,6.15,147.96,147.9,6.32]
[1718338379311,6.15,147.95,147.9,6.32]
[1718338379803,6.15,147.95,147.9,0.17]
[1718338382416,6.15,147.95,147.9,6.32]
[1718338382618,6.15,147.95,147.9,0.17]
[1718338382819,6.15,147.95,147.9,6.32]
[1718338383024,6.15,147.95,147.9,0.17]
[1718338383219,6.15,147.96,147.9,6.32]
[1718338383434,6.15,147.95,147.9,0.17]
[1718338383928,6.24,147.97,147.87,2.5021]
[1718338384233,6.15,147.94,147.88,6.66]
[1718338384530,6.15,147.94,147.89,6.15]
[1718338384729,6.15,147.94,147.88,6.49]
[1718338386540,6.15,147.94,147.88,0.34]
[1718338386704,6.15,147.94,147.88,6.32]
[1718338386910,6.15,147.93,147.88,6.32]
[1718338387232,6.15,147.92,147.85,2.5024]
[1718338387550,6.15,147.91,147.84,8.7689]
[1718338387735,6.15,147.91,147.86,6.15]
[1718338387916,6.15,147.92,147.86,9.02881232]
[1718338388443,6.15,147.93,147.87,6.15]
[1718338389412,6.15,147.93,147.85,2.6724]
[1718338389725,6.15,147.92,147.85,0.34]
[1718338389908,6.15,147.91,147.85,6.49]
[1718338391234,6.15,147.91,147.85,7.24362073]
[1718338391619,6.15,147.91,147.85,0.92362073]
[1718338391805,6.15,147.91,147.85,7.07362073]
[1718338392238,6.15,147.91,147.85,0.92362073]
[1718338392816,6.15,147.91,147.85,7.07362073]
[1718338393216,6.15,147.91,147.85,6.32]
[1718338396222,0.34,147.95,147.85,6.32]
[1718338396426,6.15,147.91,147.85,6.32]
[1718338398022,6.15,147.91,147.85,0.17]
[1718338398429,45.34,147.95,147.84,6.49]
[1718338398430,6.15,147.9,147.84,6.49]
[1718338398629,6.15,147.89,147.82,25.6707]
[1718338398834,6.15,147.89,147.83,0.34]
[1718338399343,6.15,147.89,147.83,6.49]
[1718338400152,6.15,147.89,147.83,8.9928]
[1718338402419,6.15,147.89,147.83,6.49]
[1718338402740,6.15,147.89,147.83,6.32]
[1718338403720,6.15,147.89,147.83,8.8228]
[1718338403937,6.15,147.89,147.84,6.15]
[1718338404428,6.15,147.9,147.84,6.15]
[1718338404623,16.4957,147.91,147.84,8.6526]
[1718338404821,6.15,147.9,147.84,8.6526]
[1718338405534,6.15,147.9,147.84,2.5026]
[1718338405727,6.15,147.9,147.84,8.6526]
[1718338406122,6.15,147.9,147.84,6.15]
[1718338406516,6.3179,147.93,147.85,6.32]
[1718338406717,6.15,147.93,147.87,6.15]
[1718338407743,16.5444,147.96,147.85,0.17]
[1718338407744,6.15,147.92,147.85,0.17]
[1718338407928,6.15,147.92,147.86,6.15]
[1718338408524,6.15,147.92,147.85,0.34]
[1718338408731,6.15,147.92,147.86,6.15]
[1718338409340,0.17,147.95,147.87,6.15]
[1718338409647,6.15,147.93,147.87,6.15]
[1718338410149,6.15,147.94,147.88,6.15]
[1718338410332,6.15,147.93,147.87,6.15]
[1718338412472,6.15,147.93,147.85,2.8424]
[1718338412756,6.15,147.93,147.87,6.15]
[1718338413049,6.15,147.92,147.86,6.32]
[1718338416151,0.17,147.95,147.86,6.32]